{"text_format":"1","workbook":"xlsx","n_sheets":3,"sheets":["READ ME FIRST ","PROCEDURE AND INSTRUCTIONS","FORM 745"],"not_rendered":{"charts":0,"images":22,"macros":1,"external_links":0,"defined_names":4,"comments":0,"pivot_tables":0},"unopened":[],"bounds":{"document_bytes":16777216,"sheet_cells":100000,"rows_first":2000,"rows_last":500,"rows_between":2000,"halvings":0,"cell_chars":16384,"cell_head_chars":4096},"cells_cut":0,"cells_raw":0,"read":"whole","date_system":"1900"}

{"sheet":"READ ME FIRST ","index":0,"n_rows":48,"n_cols":17,"rows_kept":48,"cut":false,"hidden":false,"merged":[[23,4,25,21],[7,5,9,20],[2,4,4,21],[47,5,48,20],[5,16,5,20],[33,7,33,14],[27,5,27,20],[32,7,32,13],[45,5,46,20],[34,7,34,12],[35,7,35,13],[15,4,17,21],[11,4,13,21],[19,4,21,21],[38,4,39,21],[41,4,43,21],[30,7,30,12],[31,7,31,11]]}
[]
[]
[null,null,null,null,"READ ME FIRST"]
[]
[]
[null,null,null,null,null,"State of Connecticut",null,null,null,null,null,null,null,null,null,null,"Department of Administrative Services"]
[]
[null,null,null,null,null,"System and Software Requirements:   Microsoft Windows XP© or compatible software; Microsoft Excel© 2000 or later.  Some difficulty may be encountered with older editions."]
[]
[]
[]
[null,null,null,null,"This form is produced in Microsoft Excel® program format.  This formatting uses macros to create graphics, formulas, etc. "]
[]
[]
[]
[null,null,null,null,"Under certain security restraints imposed  by your computer, these macros may be blocked, since the computer cannot distinguish a “good” macro, necessary to allow the form to be used, from a virus containing “bad” macro, which must be disabled.   "]
[]
[]
[]
[null,null,null,null,"For this reason, upon opening certain forms, you might get a warning that the document may contain macros.  If so, you have the option to enable or disable the macros. All macros in DAS forms are legitimate, so you can safely click on “Enable Macros.\""]
[]
[]
[]
[null,null,null,null,"If your system security level is set at “Very High” or “High,” your computer may not permit the form to be opened in usable format.  This may be overcome by lowering the security level of your computer.     "]
[]
[]
[]
[null,null,null,null,null,"To lower the security level of your computer:  "]
[null,null,null,null,null," "]
[null,null,null,null,null,null,"On the Toolbar: "]
[null,null,null,null,null,null,"1.","Click on        TOOLS"]
[null,null,null,null,null,null,"2.","Click on        MACRO"]
[null,null,null,null,null,null,"3.","Click on        SECURITY"]
[null,null,null,null,null,null,"4.","Click on        MEDIUM option"]
[null,null,null,null,null,null,"5.","Click             OK"]
[null,null,null,null,null,null,"6.","Reboot the computer"]
[null,null,null,null,null,null,"7.","Open and complete the form as necessary."]
[]
[null,null,null,null,"These forms are, also, electronically protected to preserve formatting and content.  Data may be entered in Excel® formatted forms in the lightly bordered blank areas only.   "]
[]
[]
[null,null,null,null,"Enter data in Word®  forms by clicking on the shaded Text Form Field (once or twice, depending on the configuration of your system).   The form field will change color and is then ready for entering data.. "]
[]
[]
[]
[null,null,null,null,null,"IMPORTANT:  Any attempt to by-pass this protection or change the formatting of these forms could make these forms inoperable. "]
[]
[null,null,null,null,null,"For help, contact the State of Connecticut, Department of Administrative Services, Contractor Prequalification Program  @ 860.713.5280"]

{"sheet":"PROCEDURE AND INSTRUCTIONS","index":1,"n_rows":42,"n_cols":10,"rows_kept":42,"cut":false,"hidden":false,"merged":[[0,2,2,9],[3,2,3,3],[5,2,11,9],[22,2,32,9],[42,3,42,7],[4,2,4,9],[12,2,12,9],[13,2,17,9],[18,2,18,9],[19,2,19,9],[20,2,21,9],[33,2,33,9],[35,2,39,9],[40,3,40,7],[41,3,41,7]]}
[null,null,"Contractor Performance Evaluation"]
[]
[]
[null,null,"State of Connecticut",null,null,null,null,null,null,"Department of Administrative Services"]
[null,null,"When to Submit a Contractor Performance Evaluation"]
[null,null,"Connecticut General Statutes § 4a-100 and § 4a-101 require each public agency to complete and submit a Contractor Performance Evaluation Form:\n\nInitial Prequalification or additional Prequalification Classifications:\n\n For initial prequalification, applying contractors are required to provide evaluations for projects that they are listing to document experience for a particular prequalification classification.\n Contracts for these projects must have been solely in the name of the applicant company. Performance evaluations for projects contracted to Joint Ventures are not accepted.\n\nProjects that are awarded under Connecticut General Statute § 4a-100:\n\n At 50% completion of the project between the Awarding Authority and the Contractor \n\n After 100% completion of the project between the Awarding Authority, DAS Prequalification Unit and the Contractor\nNote:   Completion of the building project is defined as the stage in which the progress of the work or designated portion thereof, is sufficiently completed in accordance with the contract documents so the owner can occupy or utilize the work for its intended use.\n\nNo person shall be liable for any injury or loss to a contractor as a result of the completion of a contractor evaluation form as required by this section unless the individual completing the form has been found by a court of competent jurisdiction to have acted in a willful, wanton, or reckless manner.\n\nAny public agency that fails to complete and submit a completed contractor evaluation form as required by this section, within 70 days of completion of a project, shall be ineligible for the receipt of any public funds disbursed by the state for the purpose of any public buildings or public works projects.\n"]
[]
[]
[]
[]
[]
[]
[null,null,"Contractor's Right to Contest"]
[null,null,"Any contractor who wishes to contest any information contained in the evaluation form may submit a written response to DAS Prequalification Unit not later than thirty (30) days after the date the form was mailed (as indicated by the postmark on the envelope) or emailed (as indicated on the dated email).\n\nSuch response shall set forth any additional information concerning the building project or the oversight of the contract by the public agency that may be relevant in the evaluation of the contractor's performance on the project.\n\nDAS Prequalification Unit shall include any such response in the Contractor's prequalification file.\n"]
[]
[]
[]
[]
[null,null,"Instructions"]
[null,null,"The role of the evaluator is extremely important in the prequalification process of the applicant. As stated previously, for initial prequalification, applying contractors are required to provide evaluations for the projects that they are listing to document experience for a particular prequalification classification.  \n\nFor Initial Prequalification Applications:\n\n Complete the requested evaluation, sign it and FAX, e-mail or mail the original to the Department of Administrative Services (see addresses below).  Note: This should be done whether or not the requesting contractor has signed the evaluation.\n Please provide the requesting contractor with a copy of the completed evaluation.\n"]
[null,null,"DAS requires that the first page of this form be completed in full.  Information is to be entered in all blank spaces"]
[]
[null,null,"To complete this form, the Evaluator checks the one answer to the Query that is applicable.   Should the Evaluator desire to amend an answer, it is done simply by checking another answer to the same Query.  All Queries must be answered in order to obtain an accurate score.  If the Evaluator is not sure that a Query applies to the project, or that it applies at the time the evaluation is being completed, check \"N.A. - Not applicable to project or at this time.\"  Checking \"N.A.\" does not impinge on the Contractor's  rating but does guarantee an accurate score.  The evaluator may make comments in the spaces provided but must explain if a query is answered with \"Unsatisfactory\" or \"No\" (the evaluation will be returned to the evaluator if this comment, when applicable, is not entered).  If additional space is required for comments, attach a page(s) to this form.  Be sure to put the Project Number, date of the evaluation and the evaluator's name at the top of the page(s).  Preface each comment with the Category Letter and the Query Number."]
[]
[]
[]
[]
[]
[]
[]
[]
[]
[]
[null,null,"Submit Contrator Performance Evaluation"]
[]
[null,null,"Please submit the completed Contractor Performance Evaluation form via:                                                                                                                                                                                                                                                                                                                                                                                       \n"]
[]
[]
[]
[]
[null,null,"FAX:","860-622-2867"]
[null,null,"E-Mail:","DAS.Prequalification@ct.gov  "]

{"sheet":"FORM 745","index":2,"n_rows":293,"n_cols":29,"rows_kept":293,"cut":false,"hidden":false,"merged":[[159,16,161,26],[149,16,151,26],[112,16,114,26],[108,16,110,26],[54,16,54,19],[229,7,231,14],[211,7,213,15],[221,7,223,14],[145,7,147,14],[141,7,143,14],[92,16,94,26],[133,16,135,26],[129,16,131,26],[63,16,64,26],[97,16,99,26],[66,16,68,26],[70,16,72,26],[79,16,81,26],[74,16,76,26],[83,16,85,26],[87,16,89,26],[245,1,245,26],[220,17,220,22],[167,16,169,26],[180,16,182,26],[184,16,186,26],[167,7,168,15],[176,7,176,13],[184,7,185,15],[188,16,190,26],[207,16,209,26],[241,1,243,26],[234,7,235,14],[225,7,226,14],[225,16,227,26],[229,16,231,26],[234,16,236,26],[180,7,181,14],[221,16,223,26],[188,7,189,15],[207,7,208,15],[203,16,205,26],[203,7,204,14],[192,16,194,26],[211,16,213,26],[4,1,4,26],[8,6,8,26],[9,4,9,26],[12,14,12,26],[1,6,1,26],[7,1,7,26],[2,1,2,7],[11,4,11,26],[22,8,22,14],[22,1,22,7],[15,20,15,26],[14,10,15,19],[14,1,15,9],[17,1,20,7],[22,15,22,26],[24,10,24,26],[25,21,26,26],[27,24,27,26],[17,8,20,14],[27,6,27,20],[116,16,118,26],[120,16,122,26],[163,16,165,26],[176,16,178,26],[145,16,147,26],[141,16,143,26],[28,6,28,20],[28,21,28,26],[31,21,31,26],[29,8,29,26],[43,1,46,26],[34,10,34,26],[31,2,31,20],[32,10,32,26],[33,10,33,26],[129,7,130,14],[137,7,138,14],[137,16,139,26],[159,7,160,14],[59,1,63,1],[97,7,99,14],[36,1,36,26],[37,1,41,26],[92,7,93,14],[120,7,121,14],[108,7,110,14],[112,7,114,15],[74,7,76,14],[83,7,84,13],[87,7,89,13],[47,5,47,20],[50,5,50,20],[52,21,52,26],[48,6,48,20],[49,6,49,20],[49,21,49,26],[51,6,51,20],[52,6,52,20]]}
[]
[null,null,null,null,null,null,"CONTRACTOR PREQUALIFICATION PROGRAM"]
[null,"Department of Administrative Services"]
[]
[null,"CONTRACTOR PERFORMANCE EVALUATION"]
[]
[]
[null,"Contractor Information",null,null,null,null,null,null,null,null,null,null,null,null,null,null,null,null,null,null,null,null,null,null,null,null,null,null,"H"]
[null,null,"Contractor Name:"]
[null,null,null,null,null,null,null,null,null,null,null,null,null,null,null,null,null,null,null,null,null,null,null,null,null,null,null,null,"I"]
[null,null,"Address:"]
[null,null,null,null,null,null,null,null,null,null,null,null,null,null,null,null,null,null,null,null,null,null,null,null,null,null,null,null,"D"]
[null,null,"Contractor E-mail Address:"]
[null,null,"PROJECT NUMBER (if applicable)",null,null,null,null,null,null,null,"                   PROJECT NAME",null,null,null,null,null,null,null,null,null,"SOURCE OF FUNDING (e.g.",null,null,null,null,null,null,null,"D"]
[null,null,null,null,null,null,null,null,null,null,null,null,null,null,null,null,null,null,null,null,"Grant, Bond, etc.)"]
[null,null,null,null,null,null,null,null,null,null,null,null,null,null,null,null,null,null,null,null,null,null,null,null,null,null,null,null,"E"]
[null,null,"     Bid Amount $:",null,null,null,null,"    ","       Current Contract Value:"]
[null,null,null,null,null,null,null,null,null,null,null,null,null,null,null,null,null,"Initial Application (must be 100% Complete)",null,null,null,null,null,null,null,null,null,null,"N"]
[null,null,null,null,null,null,null,null,null,null,null,null,null,null,null,null,null,"50% Project Completion"]
[null,null,null,null,null,null,null,null,null,null,null,null,null,null,null,null,null,"100% Project Completion",null,null,null,null,"(90 Days after S/C)"]
[null,null,null,null,null,null,null,null,null,null,null,null,null,null,null,null,null,null," Project Completion (enter percentage)",null,null,null,null,null,null,null,null,null,"F"]
[null,null,"Contract Start Date:",null,null,null,null,null,"        Contract End Date:",null,null,null,null,null,null,null,"       Substantial Completion (S/C) Date"]
[null,null,null,null,null,null,null,null,null,null,null,null,null,null,null,null,null,null,null,null,null,null,null,null,null,null,null,null,"R"]
[null,null,"Signatures"]
[null,null,"Company/Awarding Authority:",null,null,null,null,null,null,null,null,null,null,null,null,null,null,null,null,null,null,null,null,null,null,null,null,null,"O"]
[null,null,"I hereby certify that the information contained in this evaluation form represents, to the best of my"]
[null,null," knowledge, a true and accurate analysis of  the contractor's performance record on the contract.",null,null,null,null,null,null,null,null,null,null,null,null,null,null,null,null,null,null,null,null,null,null,null,null,null,"M"]
[null,null,"Evaluator Name:",null,null,null,null,null,null,null,null,null,null,null,null,null,null,null,null,null,null,null,"Date:"]
[null,null,"Signature:"]
[null,null,"Evaluator E-Mail Address:",null,null,null,null,null,null,null,null,null,null,null,null,null,null,null,null,null,null,null,null,null,null,null,null,null,"V"]
[null,null,"Contractor Signature (Unnecessary for Initial Application)",null,null,null,null,null,null,null,null,null,null,null,null,null,null,null,null,null,null,null,"Date:"]
[null,null,null,null,null,null,null,null,null,null,null,null,null,null,null,null,null,null,null,null,null,null,null,null,null,null,null,null,"I"]
[null,null,"SPM                  Name/Signature/Date:"]
[null,null,"Dir. Of Proj. Mgt. Name/Signature/Date:"]
[null,null,"Chief Architect    Name/Signature/Date:",null,null,null,null,null,null,null,null,null,null,null,null,null,null,null,null,null,null,null,null,null,null,null,null,null,"I"]
[null,null,"Indicate the Applicable Prequalification Classification(s) that this project included:",null,null,null,null,null,null,null,null,null,null,null,null,null,null,null,null," "]
[null,"Note: The work must have been completed using the contractor's own workforce.  Note: The evaluation will be invalid if the Classification(s) is not listed."]
[null,"Classification/s:",null,null,null,null,null,null,null,null,null,null,null,null,null,null,null,null,null,null,null,null,null,null,null,null,null,null,"E"]
[]
[null,null,null,null,null,null,null,null,null,null,null,null,null,null,null,null,null,null,null,null,null,null,null,null,null,null,null,null,"W"]
[]
[]
[null,null,"General Comment Section:"]
[]
[]
[]
[]
[]
[null,null,"ADPM Name:",null,null,null,"(Connecticut State Department of Public Works Use Only)",null,null,null,null,null,null,null,null,null,null,null,null,null,null,null,"Date:"]
[null,null,"Signature:"]
[]
[null,null,"DPM Name:",null,null,null,"(Connecticut State Department of Public Works Use Only)",null,null,null,null,null,null,null,null,null,null,null,null,null,null,null,"Date:"]
[null,null,"Signature:"]
[]
[null,null,null,null,null,null,null,null,null,null,null,null,null,"Score",null,null,{"$f":"AB248/(248-AC248)","v":1}]
[]
[]
[]
[]
[null,"VALUE"]
[]
[]
[]
[null,null,null,null,null,null,null,null,null,null,null,null,null,null,null,null,"NOTE: \"Unsatisfactory\" or \"No\" responses require an explanation in the \"Comments\" field."]
[null,null,null,null,null,"A.",null,"PROJECT MANAGEMENT"]
[]
[null,10,true,"Superior",null,null,"1.","Provided proper oversight of the project",null,null,null,null,null,null,null,null,"Comments",null,null,null,null,null,null,null,null,null,null,{"$f":"IF(C67=TRUE,B67,\"\")","v":10}]
[null,5,false,"Satisfactory",null,null,null,null,null,null,null,null,null,null,null,null,null,null,null,null,null,null,null,null,null,null,null,{"$f":"IF(C68=TRUE,B68,\"\")","v":""}]
[null,0,false,"Unsatisfactory"]
[]
[null,4,true,"Yes",null,null,"2.","Billings were complete and accurate ",null,null,null,null,null,null,null,null,"Comments",null,null,null,null,null,null,null,null,null,null,{"$f":"IF(C71=TRUE,B71,\"\")","v":4}]
[null,0,false,"No"]
[]
[]
[null,6,true,"Superior",null,null,"3","Provided timely notice, prior to incurrence, of  extra costs",null,null,null,null,null,null,null,null,"Comments",null,null,null,null,null,null,null,null,null,null,{"$f":"IF(C75=TRUE,B75,\"\")","v":6}]
[null,3,false,"Satisfactory",null,null,null,null,null,null,null,null,null,null,null,null,null,null,null,null,null,null,null,null,null,null,null,{"$f":"IF(C76=TRUE,B76,\"\")","v":""}]
[null,0,false,"Unsatisfactory"]
[null,null,false,"N.A.                      ",null,null,null,"Not applicable to project or at this time",null,null,null,null,null,null,null,null,null,null,null,null,null,null,null,null,null,null,null,null,{"$f":"IF(C78=TRUE,B75,\"\")","v":""}]
[null,null,null,null,null,null,null,null,null,null,null,null,null,null,null,null,null,null,null,null,null,null,null,null,null,null,null,null,{"$f":"IF(D79=TRUE,C75,\"\")","v":""}]
[null,6,true,"Superior",null,null,"4.","Knowledge of the Work performed",null,null,null,null,null,null,null,null,"Comments",null,null,null,null,null,null,null,null,null,null,{"$f":"IF(C80=TRUE,B80,\"\")","v":6}]
[null,3,false,"Satisfactory",null,null,null,null,null,null,null,null,null,null,null,null,null,null,null,null,null,null,null,null,null,null,null,{"$f":"IF(C81=TRUE,B81,\"\")","v":""}]
[null,0,false,"Unsatisfactory"]
[]
[null,10,true,"Superior",null,null,"5.","Provided adequate, experienced, qualified staff",null,null,null,null,null,null,null,null,"Comments",null,null,null,null,null,null,null,null,null,null,{"$f":"IF(C84=TRUE,B84,\"\")","v":10}]
[null,5,false,"Satisfactory",null,null,null,null,null,null,null,null,null,null,null,null,null,null,null,null,null,null,null,null,null,null,null,{"$f":"IF(C85=TRUE,B85,\"\")","v":""}]
[null,0,false,"Unsatisfactory"]
[]
[null,10,true,"Superior",null,null,"6.","Payment was made to subcontractors in accordance with contract  terms",null,null,null,null,null,null,null,null,"Comments",null,null,null,null,null,null,null,null,null,null,{"$f":"IF(C88=TRUE,B88,\"\")","v":10}]
[null,5,false,"Satisfactory",null,null,null,null,null,null,null,null,null,null,null,null,null,null,null,null,null,null,null,null,null,null,null,{"$f":"IF(C89=TRUE,B89,\"\")","v":""}]
[null,0,false,"Unsatisfactory"]
[null,null,false,"N.A.                      ",null,null,null,"Not applicable to project or at this time",null,null,null,null,null,null,null,null,null,null,null,null,null,null,null,null,null,null,null,null,{"$f":"IF(C91=TRUE,B88,\"\")","v":""}]
[]
[null,6,true,"Superior",null,null,"7.","Mitigated Change Order work wherever possible",null,null,null,null,null,null,null,null,"Comments",null,null,null,null,null,null,null,null,null,null,{"$f":"IF(C93=TRUE,B93,\"\")","v":6}]
[null,3,false,"Satisfactory",null,null,null,null,null,null,null,null,null,null,null,null,null,null,null,null,null,null,null,null,null,null,null,{"$f":"IF(C94=TRUE,B94,\"\")","v":""}]
[null,0,false,"Unsatisfactory"]
[null,null,false,"N.A.                      ",null,null,null,"Not applicable to project or at  this time",null,null,null,null,null,null,null,null,null,null,null,null,null,null,null,null,null,null,null,null,{"$f":"IF(C96=TRUE,B93,\"\")","v":""}]
[]
[null,10,true,"Superior",null,null,"8.","Change Order Proposals submitted were within contract time period and the proposed costs were not excessive",null,null,null,null,null,null,null,null,"Comments",null,null,null,null,null,null,null,null,null,null,{"$f":"IF(C98=TRUE,B98,\"\")","v":10}]
[null,5,false,"Satisfactory",null,null,null,null,null,null,null,null,null,null,null,null,null,null,null,null,null,null,null,null,null,null,null,{"$f":"IF(C99=TRUE,B99,\"\")","v":""}]
[null,-5,false,"Unsatisfactory",null,null,null,null,null,null,null,null,null,null,null,null,null,null,null,null,null,null,null,null,null,null,null,{"$f":"IF(C100=TRUE,B100,\"\")","v":""}]
[null,null,false,"N.A.                      ",null,null,null,"Not applicable to project or at this time",null,null,null,null,null,null,null,null,null,null,null,null,null,null,null,null,null,null,null,null,{"$f":"IF(C101=TRUE,B98,\"\")","v":""}]
[]
[]
[]
[]
[]
[null,null,null,null,null,"B.",null,"SCHEDULING"]
[]
[null,10,true,"Yes",null,null,"1.","Contractor's initial schedules approved pursuant to contract documents",null,null,null,null,null,null,null,null,"Comments",null,null,null,null,null,null,null,null,null,null,{"$f":"IF(C109=TRUE,B109,\"\")","v":10}]
[null,-10,false,"No",null,null,null,null,null,null,null,null,null,null,null,null,null,null,null,null,null,null,null,null,null,null,null,{"$f":"IF(C110=TRUE,B110,\"\")","v":""}]
[null,null,false,"N.A. (subs only)",null,null,null,null,null,null,null,null,null,null,null,null,null,null,null,null,null,null,null,null,null,null,null,null,{"$f":"IF(C111=TRUE,B109,\"\")","v":""}]
[]
[null,10,true,"Yes",null,null,"2.","Scheduling updates were proper, adequate, and submitted on time per contract ",null,null,null,null,null,null,null,null,"Comments",null,null,null,null,null,null,null,null,null,null,{"$f":"IF(C113=TRUE,B113,\"\")","v":10}]
[null,0,false,"No"]
[]
[]
[null,6,true,"Superior",null,null,"3.","Maintained adherence to all schedules",null,null,null,null,null,null,null,null,"Comments",null,null,null,null,null,null,null,null,null,null,{"$f":"IF(C117=TRUE,B117,\"\")","v":6}]
[null,3,false,"Satisfactory",null,null,null,null,null,null,null,null,null,null,null,null,null,null,null,null,null,null,null,null,null,null,null,{"$f":"IF(C118=TRUE,B118,\"\")","v":""}]
[null,0,false,"Unsatisfactory"]
[]
[null,10,true,"Yes",null,null,"4.","Project completed on time as defined by the contract",null,null,null,null,null,null,null,null,"Comments",null,null,null,null,null,null,null,null,null,null,{"$f":"IF(C121=TRUE,B121,\"\")","v":10}]
[null,-10,false,"No",null,null,null,null,null,null,null,null,null,null,null,null,null,null,null,null,null,null,null,null,null,null,null,{"$f":"IF(C122=TRUE,B122,\"\")","v":""}]
[]
[]
[]
[]
[]
[null,null,null,null,null,"C.",null,"PERFORMANCE"]
[]
[null,6,true,"Yes",null,null,"1.","Responded to directives in accordance with contract terms",null,null,null,null,null,null,null,null,"Comments",null,null,null,null,null,null,null,null,null,null,{"$f":"IF(C130=TRUE,B130,\"\")","v":6}]
[null,0,false,"No"]
[" "]
[]
[null,10,true,"Yes",null,null,"2.","Approval of Coordination/Shop Drawings",null,null,null,null,null,null,null,null,"Comments",null,null,null,null,null,null,null,null,null,null,{"$f":"IF(C134=TRUE,B134,\"\")","v":10}]
[null,0,false,"No",null,null,null,"received prior to starting that work"]
[]
[]
[null,6,true,"Yes",null,null,"3.","Contractor complied with all contract terms",null,null,null,null,null,null,null,null,"Comments",null,null,null,null,null,null,null,null,null,null,{"$f":"IF(C138=TRUE,B138,\"\")","v":6}]
[null,0,false,"No"]
[]
[]
[null,6,true,"Superior",null,null,"4.","Contractor collaborated with the State and all other parties of interest ",null,null,null,null,null,null,null,null,"Comments",null,null,null,null,null,null,null,null,null,null,{"$f":"IF(C142=TRUE,B142,\"\")","v":6}]
[null,3,false,"Satisfactory",null,null,null,null,null,null,null,null,null,null,null,null,null,null,null,null,null,null,null,null,null,null,null,{"$f":"IF(C143=TRUE,B143,\"\")","v":""}]
[null,0,false,"Unsatisfactory"]
[]
[null,6,true,"Superior",null,null,"5.","Ability to work within the contract's alloted costs",null,null,null,null,null,null,null,null,"Comments",null,null,null,null,null,null,null,null,null,null,{"$f":"IF(C146=TRUE,B146,\"\")","v":6}]
[null,3,false,"Satisfactory",null,null,null,null,null,null,null,null,null,null,null,null,null,null,null,null,null,null,null,null,null,null,null,{"$f":"IF(C147=TRUE,B147,\"\")","v":""}]
[null,0,false,"Unsatisfactory"]
[]
[null,10,true,"Superior",null,null,"6.","Adherence to Plans and Specifications",null,null,null,null,null,null,null,null,"Comments",null,null,null,null,null,null,null,null,null,null,{"$f":"IF(C150=TRUE,B150,\"\")","v":10}]
[null,5,false,"Satisfactory",null,null,null,null,null,null,null,null,null,null,null,null,null,null,null,null,null,null,null,null,null,null,null,{"$f":"IF(C151=TRUE,B151,\"\")","v":""}]
[null,0,false,"Unsatisfactory"]
[]
[]
[]
[]
[]
[null,null,null,null,null,"D.",null,"SAFETY"]
[]
[null,6,true,"Yes",null,null,"1.","Complied with Safety Requirements in accordance with the contract",null,null,null,null,null,null,null,null,"Comments",null,null,null,null,null,null,null,null,null,null,{"$f":"IF(C160=TRUE,B160,\"\")","v":6}]
[null,0,false,"No"]
[]
[]
[null,6,true,"Yes",null,null,"2.","Had no OSHA violations on this project",null,null,null,null,null,null,null,null,"Comments",null,null,null,null,null,null,null,null,null,null,{"$f":"IF(C164=TRUE,B164,\"\")","v":6}]
[null,0,false,"No"]
[]
[]
[null,6,true,"Yes",null,null,"3.","Project site cleanliness maintained per contract documents",null,null,null,null,null,null,null,null,"Comments",null,null,null,null,null,null,null,null,null,null,{"$f":"IF(C168=TRUE,B168,\"\")","v":6}]
[null,0,false,"No"]
[]
[]
[]
[]
[]
[null,null,null,null,null,"E.",null,"PROJECT OPERATIONS"]
[]
[null,10,true,"Superior",null,null,"1.","Quality of the Work performed",null,null,null,null,null,null,null,null,"Comments",null,null,null,null,null,null,null,null,null,null,{"$f":"IF(C177=TRUE,B177,\"\")","v":10}]
[null,5,false,"Satisfactory",null,null,null,null,null,null,null,null,null,null,null,null,null,null,null,null,null,null,null,null,null,null,null,{"$f":"IF(C178=TRUE,B178,\"\")","v":""}]
[null,0,false,"Unsatisfactory"]
[]
[null,6,true,"Yes",null,null,"2.","Contractor provided adequate materials and equipment to perform the Work ",null,null,null,null,null,null,null,null,"Comments",null,null,null,null,null,null,null,null,null,null,{"$f":"IF(C181=TRUE,B181,\"\")","v":6}]
[null,0,false,"No"]
[]
[]
[null,6,true,"Yes",null,null,"3."," No more than one  reinspection required to correct unsatisfactory work ",null,null,null,null,null,null,null,null,"Comments",null,null,null,null,null,null,null,null,null,null,{"$f":"IF(C185=TRUE,B185,\"\")","v":6}]
[null,0,false,"No"]
[]
[]
[null,6,true,"Yes",null,null,"4.","Substantial Completion granted upon initial inspection",null,null,null,null,null,null,null,null,"Comments",null,null,null,null,null,null,null,null,null,null,{"$f":"IF(C189=TRUE,B189,\"\")","v":6}]
[null,0,false,"No"]
[]
[]
[null,6,true,"Superior",null,null,"5.","Execution of site logistics",null,null,null,null,null,null,null,null,"Comments",null,null,null,null,null,null,null,null,null,null,{"$f":"IF(C193=TRUE,B193,\"\")","v":6}]
[null,3,false,"Satisfactory",null,null,null,null,null,null,null,null,null,null,null,null,null,null,null,null,null,null,null,null,null,null,null,{"$f":"IF(C194=TRUE,B194,\"\")","v":""}]
[null,0,false,"Unsatisfactory"]
[null,null,false,"N.A.                      ",null,null,null,"Not applicable to project or at this time",null,null,null,null,null,null,null,null,null,null,null,null,null,null,null,null,null,null,null,null,{"$f":"IF(C196=TRUE,B193,\"\")","v":""}]
[]
[]
[]
[]
[]
[null,null,null,null,null,"F.",null,"PROJECT CLOSEOUT"]
[]
[null,10,true,"Yes",null,null,"1.","Commissioning and equipment start-up accomplished pursuant to contract ",null,null,null,null,null,null,null,null,"Comments",null,null,null,null,null,null,null,null,null,null,{"$f":"IF(C204=TRUE,B204,\"\")","v":10}]
[null,0,false,"No"]
[null,null,false,"N.A.                      ",null,null,null,"Not applicable to project or at this time",null,null,null,null,null,null,null,null,null,null,null,null,null,null,null,null,null,null,null,null,{"$f":"IF(C206=TRUE,B204,\"\")","v":""}]
[]
[null,10,true,"Yes",null,null,"2.","Project closed out in accordance with the contract conditions ",null,null,null,null,null,null,null,null,"Comments",null,null,null,null,null,null,null,null,null,null,{"$f":"IF(C208=TRUE,B208,\"\")","v":10}]
[null,0,false,"No"]
[null,null,false,"N.A.                      ",null,null,null,"Not applicable to project or at this time",null,null,null,null,null,null,null,null,null,null,null,null,null,null,null,null,null,null,null,null,{"$f":"IF(C210=TRUE,B208,\"\")","v":""}]
[]
[null,6,true,"Superior",null,null,"3.","Contractor's Close-Out Package delivered to the Consultant within the contractually specified time",null,null,null,null,null,null,null,null,"Comments",null,null,null,null,null,null,null,null,null,null,{"$f":"IF(C212=TRUE,B212,\"\")","v":6}]
[null,3,false,"Satisfactory",null,null,null,null,null,null,null,null,null,null,null,null,null,null,null,null,null,null,null,null,null,null,null,{"$f":"IF(C213=TRUE,B213,\"\")","v":""}]
[null,0,false,"Unsatisfactory"]
[null,null,false,"N.A.                      ",null,null,null,"Not applicable to project or at this time",null,null,null,null,null,null,null,null,null,null,null,null,null,null,null,null,null,null,null,null,{"$f":"IF(C215=TRUE,B212,\"\")","v":""}]
[]
[]
[]
[]
[null,null,null,null,null,"G.",null,"COMPLIANCE"]
[]
[null,6,true,"Yes",null,null,"1.","Complied with statutory and regulatory requirements, including environmental compliance",null,null,null,null,null,null,null,null,"Comments",null,null,null,null,null,null,null,null,null,null,{"$f":"IF(C222=TRUE,B222,\"\")","v":6}]
[null,0,false,"No"]
[]
[]
[null,6,true,"Yes",null,null,"2.","Had no Labor Law violations on this project",null,null,null,null,null,null,null,null,"Comments",null,null,null,null,null,null,null,null,null,null,{"$f":"IF(C226=TRUE,B226,\"\")","v":6}]
[null,0,false,"No"]
[]
[]
[null,6,true,"Superior",null,null,"3.","Met CHRO/Affirmative Action requirements",null,null,null,null,null,null,null,null,"Comments",null,null,null,null,null,null,null,null,null,null,{"$f":"IF(C230=TRUE,B230,\"\")","v":6}]
[null,3,false,"Satisfactory",null,null,null,null,null,null,null,null,null,null,null,null,null,null,null,null,null,null,null,null,null,null,null,{"$f":"IF(C231=TRUE,B231,\"\")","v":""}]
[null,0,false,"Unsatisfactory"]
[]
[]
[null,10,true,"Yes",null,null,"4.","Met Set-aside Requirements",null,null,null,null,null,null,null,null,"Comments",null,null,null,null,null,null,null,null,null,null,{"$f":"IF(C235=TRUE,B235,\"\")","v":10}]
[null,0,false,"No"]
[null,null,false,"N.A.                      ",null,null,null,"Not applicable to project or at this time",null,null,null,null,null,null,null,null,null,null,null,null,null,null,null,null,null,null,null,null,{"$f":"IF(C237=TRUE,B235,\"\")","v":""}]
[]
[]
[]
[]
[]
[]
[]
[]
[null,"This Contractor Performance Evaluation complies with the General Statutes of Connecticut, Section 4a-101"]
[]
[null,null,null,null,null,null,null,null,null,null,null,null,null,null,null,null,null,null,null,null,null,null,null,null,null,null,null,{"$f":"SUM(AB67:AB241)","v":248},{"$f":"SUM(AC67:AC241)","v":0}]
[]
[]
[]
[]
[]
[]
[]
[]
[]
[]
[]
[]
[]
[]
[]
[]
[]
[]
[]
[]
[]
[]
[]
[]
[]
[]
[]
[]
[]
[]
[]
[]
[]
[]
[]
[]
[]
[]
[]
[]
[]
[]
[]
[]
[null,null,null,"Hidden from View",null,null,null,null,null,null,null,null,null,null,null,null,null,null,null,null,null,null,null,{"$f":"SUM(X67:X241)","v":0},{"$f":"SUM(Y67:Y241)","v":0},{"$f":"SUM(Z67:Z241)","v":0}]